fUST/lending_fUST_20240521
["ID","MTS","AMOUNT","RATE_DAILY","PERIOD"]
[327602782,1716250259928,-500.0,0.00044109,41]
[327602786,1716250259952,-770.24,0.00044109,41]
[327602789,1716250259976,-500.0,0.00044109,41]
[327602793,1716250260001,-500.0,0.00044109,41]
[327602796,1716250260025,-500.0,0.00044109,41]
[327602800,1716250260049,-500.0,0.00044109,41]
[327602803,1716250260073,-500.0,0.00044109,41]
[327602807,1716250260099,-1297.57,0.00044109,41]
[327602810,1716250260126,-500.0,0.00044109,41]
[327602814,1716250260156,-500.0,0.00044109,41]
[327602817,1716250260180,-500.0,0.00044109,41]
[327602821,1716250260204,-500.0,0.00044109,41]
[327602825,1716250260229,-500.0,0.00044109,41]
[327602828,1716250260253,-500.0,0.00044109,41]
[327602832,1716250260277,-697.82,0.00044109,41]
[327602835,1716250260302,-500.0,0.00044109,41]
[327602839,1716250260329,-606.98,0.00044109,41]
[327602842,1716250260354,-772.88,0.00044109,41]
[327602846,1716250260381,-762.28,0.00044109,41]
[327602849,1716250260407,-500.0,0.00044109,41]
[327602853,1716250260431,-691.02,0.00044109,41]
[327602856,1716250260456,-500.0,0.00044109,20]
[327602860,1716250260482,-501.02758101,0.00044109,41]
[327602864,1716250260513,-500.0,0.00044109,41]
[327602867,1716250260544,-627.14471762,0.00044109,41]
[327602871,1716250260571,-692.02,0.00044109,41]
[327602874,1716250260595,-669.76,0.00044109,41]
[327602878,1716250260620,-500.0,0.00044109,41]
[327602881,1716250260644,-501.43,0.00044109,41]
[327602885,1716250260670,-618.2331768,0.00044109,41]
[327602889,1716250260694,-500.0,0.00044109,41]
[327602892,1716250260719,-500.0,0.00044109,41]
[327602896,1716250260742,-502.57,0.00044109,41]
[327602899,1716250260766,-599.33129216,0.00044109,30]
[327602903,1716250260790,-500.0,0.00044109,41]
[327602906,1716250260813,-500.0,0.00044109,41]
[327602910,1716250260836,-500.0,0.00044109,41]
[327602913,1716250260860,-1333.45,0.00044109,41]
[327602917,1716250260882,-500.0,0.00044109,41]
[327602920,1716250260910,-500.0,0.00044109,41]
[327602924,1716250260933,-502.31206206,0.00044109,41]
[327602927,1716250260958,-500.0,0.00044109,41]
[327602931,1716250260982,-515.3,0.00044109,41]
[327602934,1716250261007,-500.0,0.00044109,41]
[327602938,1716250261032,-509.54,0.00044109,41]
[327602941,1716250261057,-500.0,0.00044109,41]
[327602945,1716250261083,-500.0,0.00044109,41]
[327602949,1716250261109,-500.0,0.00044109,41]
[327602952,1716250261133,-507.08811679,0.00044109,41]
[327602956,1716250261162,-500.0,0.00044109,41]
[327602960,1716250261187,-500.0,0.00044109,41]
[327602963,1716250261213,-430.67706425,0.00044109,41]
[327602967,1716250261238,-611.64,0.00044109,41]
[327602971,1716250261262,-1446.01,0.00044109,41]
[327602974,1716250261286,-592.75,0.00044109,41]
[327602978,1716250261311,-500.0,0.00044109,41]
[327602982,1716250261340,-1128.65,0.00044109,41]
[327602985,1716250261364,-500.0,0.00044109,41]
[327602989,1716250261389,-377.7794751,0.00044109,41]
[327602992,1716250261418,-500.0,0.00044109,41]
[327602996,1716250261442,-500.0,0.00044109,41]
[327603007,1716250261587,-500.0,0.00044109,41]
[327603010,1716250261612,-755.61,0.00044109,41]
[327603014,1716250261639,-500.0,0.00044109,14]
[327603017,1716250261669,-500.0,0.00044109,41]
[327603021,1716250261695,-500.0,0.00044109,41]
[327603025,1716250261722,-500.0,0.00044109,41]
[327603028,1716250261747,-500.0,0.00044109,41]
[327603032,1716250261772,-500.0,0.00044109,41]
[327603035,1716250261797,-359.75087961,0.00044109,41]
[327603039,1716250261823,-500.0,0.00044109,41]
[327603043,1716250261850,-500.0,0.00044109,41]
[327603046,1716250261878,-500.0,0.00044109,41]
[327603050,1716250261908,-631.49511212,0.00044109,41]
[327603053,1716250261932,-500.0,0.00044109,120]
[327603057,1716250261958,-500.0,0.00044109,41]
[327603061,1716250261983,-215.22395731,0.00044109,41]
[327603064,1716250262008,-500.0,0.00044109,41]
[327603068,1716250262034,-500.0,0.00044109,41]
[327603071,1716250262060,-836.73,0.00044109,41]
[327603075,1716250262086,-967.9,0.00044109,41]
[327603079,1716250262112,-808.43,0.00044109,41]
[327603082,1716250262139,-925.88,0.00044109,41]
[327603085,1716250262174,-500.0,0.00044109,41]
[327603087,1716250262203,-500.0,0.00044109,41]
[327603088,1716250262234,-500.0,0.00044109,41]
[327603089,1716250262262,-4085.77,0.00044109,41]
[327603090,1716250262290,-500.0,0.00044109,41]
[327603091,1716250262317,-1102.4,0.00044109,41]
[327603092,1716250262341,-500.0,0.00044109,41]
[327603093,1716250262367,-566.13,0.00044109,41]
[327603094,1716250262393,-526.14,0.00044109,41]
[327603095,1716250262427,-510.95,0.00044109,41]
[327603096,1716250262458,-500.0,0.00044109,41]
[327603097,1716250262484,-2734.75,0.00044109,41]
[327603098,1716250262514,-500.0,0.00044109,41]
[327603099,1716250262545,-1153.85,0.00044109,41]
[327603100,1716250262574,-500.0,0.00044109,41]
[327603101,1716250262602,-1301.76,0.00044109,41]
[327603102,1716250262627,-807.26,0.00044109,41]
[327603103,1716250262658,-524.46675171,0.00044109,41]
[327603106,1716250262682,-709.66,0.00044109,41]
[327603110,1716250262706,-500.0,0.00044109,41]
[327603113,1716250262732,-500.0,0.00044109,41]
[327603116,1716250262757,-2556.46,0.00044109,41]
[327603120,1716250262784,-500.0,0.00044109,41]
[327603123,1716250262809,-500.0,0.00044109,41]
[327603127,1716250262832,-500.0,0.00044109,41]
[327603130,1716250262856,-500.0,0.00044109,41]
[327603134,1716250262880,-500.0,0.00044109,41]
[327603138,1716250262907,-463.38265305,0.00044109,41]
[327603141,1716250262931,-625.27,0.00044109,41]
[327603145,1716250262955,-651.68,0.00044109,41]
[327603148,1716250262979,-581.41,0.00044109,41]
[327603152,1716250263003,-888.09,0.00044109,41]
[327603155,1716250263026,-500.0,0.00044109,41]
[327603159,1716250263050,-537.89,0.00044109,41]
[327603162,1716250263073,-1507.51,0.00044109,41]
[327603166,1716250263097,-501.85975324,0.00044109,41]
[327603170,1716250263120,-940.8,0.00044109,41]
[327603173,1716250263144,-533.38428511,0.00044109,41]
[327603176,1716250263170,-500.0,0.00044109,41]
[327603180,1716250263193,-500.0,0.00044109,41]
[327603184,1716250263217,-826.08,0.00044109,41]
[327603187,1716250263243,-500.0,0.00044109,41]
[327603191,1716250263266,-500.0,0.00044109,41]
[327603194,1716250263290,-14705.65,0.00044109,41]
[327603198,1716250263314,-500.0,0.00044109,41]
[327603201,1716250263337,-791.08,0.00044109,41]
[327603205,1716250263361,-2689.22,0.00044109,41]
[327603208,1716250263384,-500.0,0.00044109,41]
[327603212,1716250263410,-500.0,0.00044109,41]
[327603216,1716250263433,-500.0,0.00044109,41]
[327603229,1716250263558,-500.0,0.00044109,41]
[327603233,1716250263582,-1202.47,0.00044109,41]
[327603237,1716250263606,-500.0,0.00044109,41]
[327603240,1716250263634,-500.0,0.00044109,41]
[327603243,1716250263660,-500.0,0.00044109,41]
[327603247,1716250263687,-500.0,0.00044109,41]
[327603251,1716250263710,-500.0,0.00044109,41]
[327603254,1716250263734,-500.0,0.00044109,41]
[327603258,1716250263758,-500.0,0.00044109,41]
[327603262,1716250263782,-500.0,0.00044109,41]
[327603265,1716250263805,-500.0,0.00044109,41]
[327603268,1716250263829,-6292.26,0.00044109,41]
[327603272,1716250263853,-661.38,0.00044109,41]
[327603276,1716250263878,-267.82339139,0.00044109,41]
[327603280,1716250263909,-500.0,0.00044109,41]
[327603283,1716250263932,-500.0,0.00044109,41]
[327603287,1716250263955,-714.09,0.00044109,41]
[327603290,1716250263978,-515.38,0.00044109,41]
[327603294,1716250264002,-609.19,0.00044109,41]
[327603297,1716250264025,-500.0,0.00044109,41]
[327603300,1716250264048,-500.0,0.00044109,41]
[327603304,1716250264071,-897.49,0.00044109,41]
[327603308,1716250264094,-500.0,0.00044109,41]
[327603311,1716250264118,-1349.58,0.00044109,41]
[327603315,1716250264141,-500.0,0.00044109,41]
[327603318,1716250264167,-708.7,0.00044109,41]
[327603322,1716250264191,-500.0,0.00044109,41]
[327603325,1716250264214,-500.0,0.00044109,41]
[327603329,1716250264238,-500.0,0.00044109,41]
[327603332,1716250264261,-675.43,0.00044109,41]
[327603336,1716250264285,-5945.23,0.00044109,41]
[327603338,1716250264310,-500.0,0.00044109,41]
[327603341,1716250264333,-552.82,0.00044109,41]
[327603345,1716250264357,-500.0,0.00044109,41]
[327603348,1716250264382,-500.0,0.00044109,41]
[327603352,1716250264409,-500.0,0.00044109,41]
[327603355,1716250264432,-615.66,0.00044109,41]
[327603359,1716250264457,-1192.84,0.00044109,41]
[327603362,1716250264481,-727.51,0.00044109,41]
[327603366,1716250264508,-6646.77,0.00044109,41]
[327603369,1716250264538,-500.0,0.00044109,41]
[327603372,1716250264562,-500.0,0.00044109,41]
[327603376,1716250264586,-5855.01,0.00044109,21]
[327603379,1716250264612,-734.26,0.00044109,41]
[327603382,1716250264635,-500.0,0.00044109,41]
[327603385,1716250264662,-696.74,0.00044109,41]
[327603386,1716250264688,-500.0,0.00044109,41]
[327603387,1716250264711,-1092.77,0.00044109,41]
[327603388,1716250264735,-500.0,0.00044109,41]
[327603389,1716250264762,-592.38,0.00044109,41]
[327603391,1716250264786,-1598.58,0.00044109,41]
[327603392,1716250264811,-502.84669941,0.00044109,41]
[327603393,1716250264835,-742.62,0.00044109,41]
[327603394,1716250264859,-2458.86,0.00044109,41]
[327603395,1716250264884,-500.0,0.00044109,41]
[327603396,1716250264916,-500.0,0.00044109,41]
[327603397,1716250264941,-1786.36,0.00044109,41]
[327603398,1716250264966,-904.06,0.00044109,41]
[327603399,1716250264991,-500.0,0.00044109,41]
[327603400,1716250265014,-500.0,0.00044109,41]
[327603401,1716250265038,-679.04,0.00044109,41]
[327603402,1716250265063,-500.0,0.00044109,41]
[327603403,1716250265088,-1073.93,0.00044109,41]
[327603404,1716250265113,-500.0,0.00044109,41]
[327603405,1716250265145,-500.0,0.00044109,41]
[327603406,1716250265179,-1174.18,0.00044109,41]
[327603407,1716250265205,-500.0,0.00044109,41]
[327603408,1716250265232,-500.0,0.00044109,41]
[327603409,1716250265259,-1689.27,0.00044109,41]
[327603410,1716250265383,-2003.34,0.00044109,41]
[327603411,1716250265415,-500.0,0.00044109,41]
[327603412,1716250265440,-629.77,0.00044109,41]
[327603413,1716250265466,-500.0,0.00044109,41]
[327603414,1716250265491,-1268.06,0.00044109,41]
[327603415,1716250265519,-500.0,0.00044109,41]
[327603416,1716250265544,-500.0,0.00044109,41]
[327603417,1716250265570,-500.0,0.00044109,41]
[327603418,1716250265596,-609.76,0.00044109,41]
[327603419,1716250265621,-4297.75,0.00044109,41]
[327603420,1716250265646,-426.17236357,0.00044109,41]
[327603421,1716250265674,-1708.43,0.00044109,41]
[327603422,1716250265698,-25984.4,0.00044109,41]
[327603423,1716250265722,-500.0,0.00044109,41]
[327603424,1716250265746,-500.0,0.00044109,41]
[327603425,1716250265768,-500.0,0.00044109,41]
[327603426,1716250265792,-806.75,0.00044109,41]
[327603427,1716250265815,-500.0,0.00044109,41]
[327603428,1716250265840,-500.0,0.00044109,41]
[327603429,1716250265866,-500.0,0.00044109,41]
[327603430,1716250265891,-500.0,0.00044109,41]
[327603431,1716250265919,-500.0,0.00044109,41]
[327603432,1716250265944,-1114.89,0.00044109,41]
[327603433,1716250265969,-518.12,0.00044109,41]
[327603434,1716250265994,-1435.27,0.00044109,41]
[327603435,1716250266020,-500.0,0.00044109,41]
[327603436,1716250266046,-500.0,0.00044109,41]
[327603437,1716250266070,-629.31,0.00044109,41]
[327603438,1716250266096,-3000.0,0.00044109,30]
[327603439,1716250266120,-500.0,0.00044109,41]
[327603440,1716250266146,-4136.4,0.00044109,41]
[327603441,1716250266174,-1356.54,0.00044109,41]
[327603442,1716250266198,-1000.0,0.00044109,41]
[327603443,1716250266221,-500.0,0.00044109,41]
[327603444,1716250266244,-500.0,0.00044109,41]
[327603445,1716250266268,-975.11,0.00044109,41]
[327603446,1716250266292,-915.69,0.00044109,41]
[327603447,1716250266314,-500.0,0.00044109,30]
[327603448,1716250266338,-500.0,0.00044109,41]
[327603449,1716250266362,-511.8,0.00044109,41]
[327603450,1716250266384,-500.0,0.00044109,41]
[327603451,1716250266411,-2656.56,0.00044109,41]
[327603452,1716250266434,-500.0,0.00044109,41]
[327603453,1716250266457,-500.0,0.00044109,41]
[327603454,1716250266481,-500.0,0.00044109,41]
[327603455,1716250266509,-381.05028867,0.00044109,41]
[327603456,1716250266533,-500.0,0.00044136,60]
[327603457,1716250266558,-500.0,0.00044164,60]
[327603458,1716250266582,-500.0,0.00044191,60]
[327603459,1716250266606,-500.0,0.00044219,60]
[327603460,1716250266629,-500.0,0.00044246,60]
[327603461,1716250266662,-500.0,0.00044273,60]
[327603462,1716250266687,-165.2380805,0.00044295,30]
[327603463,1716250266710,-154.922967,0.00044297,30]
[327603464,1716250266735,-492.61535643,0.00044301,60]
[327603465,1716250266760,-150.5,0.00044353,35]
[327603466,1716250266784,-151.73,0.00044353,35]
[327603467,1716250266809,-157.24,0.00044353,35]
[327603468,1716250266832,-150.5,0.00044353,35]
[327603469,1716250266857,-150.5,0.00044363,35]
[327603470,1716250266881,-150.5,0.00044363,35]
[327603471,1716250266904,-150.5,0.00044363,35]
[327603472,1716250266929,-150.5,0.00044363,35]
[327603473,1716250266952,-150.5,0.00044373,35]
[327603474,1716250266975,-150.5,0.00044373,35]
[327603475,1716250267003,-150.5,0.00044373,35]
[327603476,1716250267027,-150.5,0.00044373,35]
[327603477,1716250267133,-410.86518034,0.00044383,42]
[327603478,1716250267174,-500.0,0.00044383,42]
[327603479,1716250267197,-500.0,0.00044383,42]
[327603480,1716250267221,-860.78,0.00044383,42]
[327603481,1716250267245,-500.0,0.00044383,42]
[327603482,1716250267268,-500.0,0.00044383,42]
[327603483,1716250267291,-500.0,0.00044383,42]
[327603484,1716250267315,-500.0,0.00044383,42]
[327603485,1716250267338,-500.0,0.00044383,42]
[327603486,1716250267361,-500.0,0.00044383,42]
[327603487,1716250267385,-500.0,0.00044383,42]
[327603488,1716250267410,-500.0,0.00044383,42]
[327603489,1716250267433,-650.18,0.00044383,42]
[327603490,1716250267457,-500.0,0.00044383,42]
[327603491,1716250267482,-500.0,0.00044383,42]
[327603492,1716250267505,-500.0,0.00044383,42]
[327603493,1716250267533,-500.0,0.00044383,42]
[327603494,1716250267562,-500.0,0.00044383,42]
[327603495,1716250267587,-998.69,0.00044383,42]
[327603496,1716250267611,-500.0,0.00044383,42]
[327603497,1716250267636,-500.0,0.00044383,42]
[327603498,1716250267664,-848.94,0.00044383,42]
[327603499,1716250267687,-500.0,0.00044383,42]
[327603500,1716250267711,-620.77652877,0.00044383,42]
[327603501,1716250267735,-500.0,0.00044383,42]
[327603502,1716250267758,-500.0,0.00044383,42]
[327603503,1716250267784,-500.0,0.00044383,42]
[327603504,1716250267807,-500.0,0.00044383,42]
[327603505,1716250267831,-500.0,0.00044383,42]
[327603506,1716250267856,-731.45,0.00044383,42]
[327603507,1716250267881,-500.0,0.00044383,42]
[327603508,1716250267904,-500.0,0.00044383,42]
[327603509,1716250267929,-500.0,0.00044383,42]
[327603510,1716250267952,-500.0,0.00044383,42]
[327603511,1716250267977,-542.91,0.00044383,42]
[327603512,1716250268000,-500.0,0.00044383,42]
[327603513,1716250268024,-500.0,0.00044383,42]
[327603514,1716250268048,-500.0,0.00044383,42]
[327603515,1716250268071,-513.08045135,0.00044383,42]
[327603516,1716250268095,-500.0,0.00044383,42]
[327603517,1716250268118,-500.0,0.00044383,42]
[327603518,1716250268141,-558.26083202,0.00044383,42]
[327603519,1716250268169,-500.0,0.00044383,42]
[327603520,1716250268192,-500.0,0.00044383,42]
[327603521,1716250268216,-500.0,0.00044383,42]
[327603522,1716250268240,-500.0,0.00044383,42]
[327603523,1716250268264,-500.0,0.00044383,42]
[327603524,1716250268288,-500.0,0.00044383,42]
[327603525,1716250268312,-500.0,0.00044383,42]
[327603526,1716250268335,-528.24591022,0.00044383,42]
[327603527,1716250268360,-500.0,0.00044383,42]
[327603528,1716250268383,-500.0,0.00044383,42]
[327603529,1716250268409,-500.0,0.00044383,42]
[327603530,1716250268432,-1171.07,0.00044383,42]
[327603531,1716250268457,-500.0,0.00044383,42]
[327603532,1716250268483,-500.0,0.00044383,42]
[327603533,1716250268508,-500.0,0.00044383,42]
[327603534,1716250268535,-580.66,0.00044383,42]
[327603535,1716250268562,-500.0,0.00044383,42]
[327603536,1716250268588,-237.86119681,0.00044383,42]
[327603537,1716250268613,-500.0,0.00044383,42]
[327603538,1716250268639,-532.32811759,0.00044383,42]
[327603539,1716250268667,-500.0,0.00044383,42]
[327603540,1716250268690,-925.0,0.00044383,42]
[327603541,1716250268715,-554.23,0.00044383,42]
[327603542,1716250268834,-500.0,0.00044383,42]
[327603543,1716250268861,-500.0,0.00044383,42]
[327603544,1716250268887,-894.89,0.00044383,42]
[327603545,1716250268914,-500.0,0.00044383,42]
[327603546,1716250268938,-500.0,0.00044383,42]
[327603547,1716250268962,-761.16,0.00044383,42]
[327603548,1716250268986,-586.58799935,0.00044383,42]
[327603549,1716250269010,-1579.25,0.00044383,42]
[327603550,1716250269033,-902.49,0.00044383,42]
[327603551,1716250269058,-500.0,0.00044383,42]
[327603552,1716250269082,-500.0,0.00044383,42]
[327603553,1716250269107,-500.0,0.00044383,42]
[327603554,1716250269136,-500.0,0.00044383,42]
[327603555,1716250269166,-500.0,0.00044383,42]
[327603556,1716250269192,-804.18,0.00044383,42]
[327603557,1716250269218,-578.87250728,0.00044383,42]
[327603558,1716250269244,-1000.0,0.00044383,42]
[327603559,1716250269269,-1106.09,0.00044383,42]
[327603560,1716250269293,-500.0,0.00044383,42]
[327603561,1716250269318,-1516.44,0.00044383,42]
[327603562,1716250269343,-500.0,0.00044383,42]
[327603563,1716250269369,-500.0,0.00044383,42]
[327603564,1716250269392,-500.0,0.00044383,42]
[327603565,1716250269420,-869.16,0.00044383,42]
[327603566,1716250269444,-500.0,0.00044383,42]
[327603567,1716250269470,-715.03,0.00044383,42]
[327603568,1716250269494,-500.0,0.00044383,42]
[327603569,1716250269520,-500.0,0.00044383,42]
[327603570,1716250269545,-500.0,0.00044383,42]
[327603571,1716250269572,-522.92,0.00044383,42]
[327603572,1716250269598,-500.0,0.00044383,42]
[327603573,1716250269623,-878.66,0.00044383,42]
[327603574,1716250269647,-500.0,0.00044383,42]
[327603575,1716250269675,-638.77,0.00044383,42]
[327603576,1716250269701,-518.59164148,0.00044383,42]
[327603577,1716250269724,-500.0,0.00044383,42]
[327603578,1716250269748,-500.0,0.00044383,42]
[327603579,1716250269774,-1368.41,0.00044383,42]
[327603580,1716250269799,-591.08747668,0.00044383,42]
[327603581,1716250269822,-996.2,0.00044383,42]
[327603582,1716250269848,-500.0,0.00044383,42]
[327603583,1716250269872,-500.0,0.00044383,42]
[327603584,1716250269897,-1196.81,0.00044383,42]
[327603585,1716250269925,-500.0,0.00044383,42]
[327603586,1716250269949,-1308.24,0.00044383,42]
[327603587,1716250269973,-178.31721571,0.00044383,42]
[327603588,1716250270000,-620.21,0.00044383,42]
[327603589,1716250270025,-531.36,0.00044383,42]
[327603590,1716250270051,-574.44,0.00044383,42]
[327603591,1716250270075,-823.14,0.00044383,42]
[327603592,1716250270099,-505.59310942,0.00044383,42]
[327603593,1716250270122,-269.5985923,0.00044383,42]
[327603594,1716250270147,-500.0,0.00044383,42]
[327603595,1716250270175,-500.0,0.00044383,42]
[327603596,1716250270199,-1185.03,0.00044383,42]
[327603597,1716250270223,-500.0,0.00044383,42]
[327603598,1716250270249,-500.0,0.00044383,42]
[327603599,1716250270274,-674.84,0.00044383,42]
[327603600,1716250270299,-500.0,0.00044383,42]
[327603601,1716250270324,-1013.81,0.00044383,42]
[327603602,1716250270347,-500.0,0.00044383,42]
[327603603,1716250270373,-1048.39,0.00044383,42]
[327603604,1716250270396,-1098.26,0.00044383,42]
[327603605,1716250270522,-500.0,0.00044383,42]
[327603606,1716250270551,-565.27,0.00044383,42]
[327603607,1716250270578,-500.0,0.00044383,42]
[327603608,1716250270603,-846.06,0.00044383,42]
[327603609,1716250270630,-1018.37,0.00044383,42]
[327603610,1716250270659,-735.36,0.00044383,42]
[327603611,1716250270684,-1352.95,0.00044383,42]
[327603612,1716250270709,-500.0,0.00044383,42]
[327603613,1716250270737,-770.24,0.00044383,42]
[327603614,1716250270762,-500.0,0.00044383,42]
[327603615,1716250270787,-500.0,0.00044383,42]
[327603616,1716250270812,-500.0,0.00044383,42]
[327603617,1716250270838,-500.0,0.00044383,42]
[327603618,1716250270862,-500.0,0.00044383,42]
[327603619,1716250270888,-500.0,0.00044383,42]
[327603620,1716250270914,-500.0,0.00044383,42]
[327603621,1716250270939,-500.0,0.00044383,42]
[327603622,1716250270965,-500.0,0.00044383,42]
[327603623,1716250270990,-1297.57,0.00044383,42]
[327603624,1716250271014,-500.0,0.00044383,42]
[327603625,1716250271039,-500.0,0.00044383,42]
[327603626,1716250271064,-697.82,0.00044383,42]
[327603627,1716250271089,-500.0,0.00044383,42]
[327603628,1716250271115,-606.98,0.00044383,42]
[327603629,1716250271139,-772.88,0.00044383,42]
[327603630,1716250271164,-762.28,0.00044383,42]
[327603631,1716250271189,-691.02,0.00044383,42]
[327603632,1716250271213,-500.0,0.00044383,20]
[327603633,1716250271237,-500.0,0.00044383,42]
[327603634,1716250271261,-692.02,0.00044383,42]
[327603635,1716250271294,-669.76,0.00044383,42]
[327603636,1716250271333,-500.0,0.00044383,42]
[327603637,1716250271378,-501.43,0.00044383,42]
[327603638,1716250271418,-500.0,0.00044383,42]
[327603639,1716250271454,-500.0,0.00044383,42]
[327603640,1716250271492,-502.57,0.00044383,42]
[327603641,1716250271534,-500.0,0.00044383,42]
[327603642,1716250271571,-500.0,0.00044383,42]
[327603643,1716250271606,-500.0,0.00044383,42]
[327603644,1716250271638,-1333.45,0.00044383,42]
[327603645,1716250271671,-500.0,0.00044383,42]
[327603646,1716250271709,-500.0,0.00044383,42]
[327603647,1716250271742,-500.0,0.00044383,42]
[327603648,1716250271776,-515.3,0.00044383,42]
[327603649,1716250271810,-500.0,0.00044383,42]
[327603650,1716250271842,-509.54,0.00044383,42]
[327603651,1716250271875,-275.35374866,0.00044383,42]
[327603652,1716250271910,-500.0,0.00044383,42]
[327603653,1716250271942,-500.0,0.00044383,42]
[327603654,1716250271975,-500.0,0.00044383,42]
[327603655,1716250272010,-500.0,0.00044383,42]
[327603656,1716250272044,-611.64,0.00044383,42]
[327603657,1716250272077,-1446.01,0.00044383,42]
[327603658,1716250272110,-592.75,0.00044383,42]
[327603659,1716250272142,-500.0,0.00044383,42]
[327603660,1716250272176,-1128.65,0.00044383,42]
[327603661,1716250272209,-500.0,0.00044383,42]
[327603662,1716250272242,-500.0,0.00044383,42]
[327603663,1716250272274,-500.0,0.00044383,42]
[327603664,1716250272307,-414.97061866,0.00044383,42]
[327603665,1716250272339,-755.61,0.00044383,42]
[327603666,1716250272501,-500.0,0.00044383,42]
[327603667,1716250272529,-500.0,0.00044383,42]
[327603668,1716250272554,-500.0,0.00044383,14]
[327603669,1716250272577,-500.0,0.00044383,42]
[327603670,1716250272602,-500.0,0.00044383,42]
[327603671,1716250272625,-506.13495489,0.00044383,42]
[327603672,1716250272648,-194.93911576,0.00044383,42]
[327603673,1716250272673,-500.0,0.00044383,42]
[327603674,1716250272696,-500.0,0.00044383,42]
[327603675,1716250272720,-500.0,0.00044383,42]
[327603676,1716250272745,-500.0,0.00044383,42]
[327603677,1716250272769,-500.0,0.00044383,120]
[327603678,1716250272796,-500.0,0.00044383,42]
[327603679,1716250272820,-836.73,0.00044383,42]
[327603680,1716250272844,-967.9,0.00044383,42]
[327603681,1716250272869,-808.43,0.00044383,42]
[327603682,1716250272894,-925.88,0.00044383,42]
[327603683,1716250272923,-500.0,0.00044383,42]
[327603684,1716250272946,-500.0,0.00044383,42]
[327603685,1716250272970,-500.0,0.00044383,42]
[327603686,1716250272994,-4085.77,0.00044383,42]
[327603687,1716250273021,-500.0,0.00044383,42]
[327603688,1716250273044,-1102.4,0.00044383,42]
[327603689,1716250273068,-500.0,0.00044383,42]
[327603690,1716250273092,-526.14,0.00044383,42]
[327603691,1716250273115,-566.13,0.00044383,42]
[327603692,1716250273138,-510.95,0.00044383,42]
[327603693,1716250273165,-500.0,0.00044383,42]
[327603694,1716250273188,-2734.75,0.00044383,42]
[327603695,1716250273211,-500.0,0.00044383,42]
[327603696,1716250273235,-1153.85,0.00044383,42]
[327603697,1716250273260,-500.0,0.00044383,42]
[327603698,1716250273283,-1301.76,0.00044383,42]
[327603699,1716250273306,-807.26,0.00044383,42]
[327603700,1716250273331,-709.66,0.00044383,42]
[327603701,1716250273356,-500.0,0.00044383,42]
[327603702,1716250273380,-500.0,0.00044383,42]
[327603703,1716250273404,-2556.46,0.00044383,42]
[327603704,1716250273434,-500.0,0.00044383,42]
[327603705,1716250273458,-500.0,0.00044383,42]
[327603706,1716250273483,-500.0,0.00044383,42]
[327603707,1716250273506,-584.04965935,0.00044383,42]